[Event "94th Paris-ch  2019"]
[Site "Paris"]
[Date "2019.07.08"]
[Round "3.1"]
[White "Philippe, Guillaume"]
[Black "Moussard, Jules"]
[Result "0-1"]
[ECO "B20"]
[WhiteElo "2344"]
[BlackElo "2576"]
[Annotator "ChessBase"]
[PlyCount "112"]
[EventDate "2019.07.07"]
[EventType "swiss"]
[EventCountry "FRA"]
[SourceTitle "playchess.com"]
[Source "ChessBase"]
[SourceQuality "1"]
[TimeControl "5400+30"]

1. e4 {[%emt 0:18:51]} c5 {[%emt 0:00:00]} 2. a3 {[%emt 0:00:28]} g6 {[%emt 0:01:24]} 3. Nc3 {[%emt 0:00:32]} Bg7 {[%emt 0:00:12]} 4. Bc4 {[%emt 0:00:17]} Nc6 {[%emt 0:02:10]} 5. d3 {[%emt 0:00:23]} e6 {[%emt 0:01:36]} 6. Ba2 {[%emt 0:00:32]} a6 {[%emt 0:04:45]} 7. f4 {[%emt 0:06:33]} Nge7 {[%emt 0:06:56]} 8. h4 {[%emt 0:02:36]} h5 {[%emt 0:01:24]} 9. Nf3 {[%emt 0:00:24]} d5 {[%emt 0:01:57]} 10. Bd2 {[%emt 0:02:36]} Nd4 {[%emt 0:10:14]} 11. Ng5 {[%emt 0:01:32]} b5 {[%emt 0:05:50]} 12. O-O {[%emt 0:01:09]} Bb7 {[%emt 0:03:23]} 13. Be1 {[%emt 0:05:06]} Qc7 {[%emt 0:05:48]} 14. Nb1 {[%emt 0:08:49]} Rd8 {[%emt 0:16:14]} 15. c3 {[%emt 0:01:09]} dxe4 {[%emt 0:07:31]} 16. dxe4 {[%emt 0:01:48]} c4 {[%emt 0:04:55]} 17. Nd2 {[%emt 0:02:49]} f6 {[%emt 0:01:20]} 18. Nh3 {[%emt 0:04:43]} Ndc6 {[%emt 0:00:54]} 19. Qe2 {[%emt 0:00:34]} Na5 {[%emt 0:00:54]} 20. Rd1 {[%emt 0:01:56]} O-O {[%emt 0:01:31]} 21. Bf2 {[%emt 0:01:46]} Qc6 {[%emt 0:01:37]} 22. Bb1 {[%emt 0:00:40]} e5 {[%emt 0:08:57]} 23. fxe5 {[%emt 0:05:09]} fxe5 {[%emt 0:00:01]} 24. Ng5 {[%emt 0:01:18]} Bc8 {[%emt 0:00:13]} 25. Ndf3 {[%emt 0:00:51]} Qc7 {[%emt 0:02:15]} 26. Qe3 {[%emt 0:02:18]} Rxd1 {[%emt 0:00:21]} 27. Rxd1 {[%emt 0:00:09]} Rd8 {[%emt 0:00:02]} 28. Rf1 {[%emt 0:02:08]} Nb3 {[%emt 0:02:22]} 29. Bc2 {[%emt 0:01:14]} Nc6 {[%emt 0:00:38]} 30. Qb6 {[%emt 0:08:13]} Qxb6 {[%emt 0:00:50]} 31. Bxb6 {[%emt 0:00:05]} Rd6 {[%emt 0:00:08]} 32. Rd1 {[%emt 0:01:32]} Rxd1+ {[%emt 0:00:50]} 33. Bxd1 {[%emt 0:00:11]} a5 {[%emt 0:01:14]} 34. a4 {[%emt 0:07:01]} bxa4 {[%emt 0:00:44]} 35. Be2 {[%emt 0:00:08]} Ba6 {[%emt 0:00:13]} 36. Ne6 {[%emt 0:00:25]} Nc1 {[%emt 0:00:35]} 37. Kf2 {[%emt 0:01:47]} Bf6 {[%emt 0:02:12]} 38. Nc7 {[%emt 0:02:04]} Nxe2 {[%emt 0:01:11]} 39. Kxe2 {[%emt 0:00:41]} Bc8 {[%emt 0:02:17]} 40. Nd5 {[%emt 0:01:34]} Kf7 {[%emt 0:03:44]} 41. Nxf6 {[%emt 0:00:13]} Kxf6 {[%emt 0:00:01]} 42. Ke3 {[%emt 0:00:27]} Ke6 {[%emt 0:00:44]} 43. Ng5+ {[%emt 0:01:41]} Kd6 {[%emt 0:00:08]} 44. Nf7+ {[%emt 0:01:23]} Ke7 {[%emt 0:00:01]} 45. Ng5 {[%emt 0:00:11]} Bg4 {[%emt 0:00:04]} 46. Kf2 {[%emt 0:00:34]} Kd7 {[%emt 0:00:58]} 47. Nf7 {[%emt 0:00:35]} Ke7 {[%emt 0:00:03]} 48. Ng5 {[%emt 0:00:06]} Ke8 {[%emt 0:00:15]} 49. Ke3 {[%emt 0:00:07]} Kd7 {[%emt 0:00:35]} 50. Nf7 {[%emt 0:00:20]} Ke7 {[%emt 0:00:01]} 51. Ng5 {[%emt 0:00:06]} Ke8 {[%emt 0:00:04]} 52. Kf2 {[%emt 0:00:06]} Nb4 {[%emt 0:00:46]} 53. Bxa5 {[%emt 0:05:14]} Nd3+ {[%emt 0:00:03]} 54. Ke3 {[%emt 0:00:09]} Nxb2 {[%emt 0:00:05]} 55. Bb4 {[%emt 0:00:12]} Nd3 {[%emt 0:00:25]} 56. Ba3 {[%emt 0:00:53]} Ne1 {[%emt 0:00:07] Kd4} 0-1

[Event "94th Paris-ch  2019"]
[Site "Paris"]
[Date "2019.07.08"]
[Round "3.2"]
[White "Abergel, Thal"]
[Black "Chalmeta Ugas, Ramon"]
[Result "1-0"]
[ECO "E60"]
[WhiteElo "2450"]
[BlackElo "2232"]
[Annotator "ChessBase"]
[PlyCount "141"]
[EventDate "2019.07.07"]
[EventType "swiss"]
[EventCountry "FRA"]
[SourceTitle "playchess.com"]
[Source "ChessBase"]
[SourceQuality "1"]
[TimeControl "5400+30"]

1. Nf3 {[%emt 0:00:00]} Nf6 {[%emt 0:00:00]} 2. c4 {[%emt 0:00:00]} c5 {[%emt 0:01:51]} 3. g3 {[%emt 0:00:03]} Nc6 {[%emt 0:01:10]} 4. Bg2 {[%emt 0:02:07]} g6 {[%emt 0:00:41]} 5. b3 {[%emt 0:00:42]} Bg7 {[%emt 0:00:26]} 6. Bb2 {[%emt 0:00:06]} O-O {[%emt 0:00:16]} 7. O-O {[%emt 0:01:02]} d6 {[%emt 0:02:03]} 8. d4 {[%emt 0:02:15]} cxd4 {[%emt 0:02:14]} 9. Nxd4 {[%emt 0:00:43]} Bd7 {[%emt 0:00:33]} 10. Nc2 {[%emt 0:00:14]} Rc8 {[%emt 0:04:30]} 11. Nc3 {[%emt 0:03:02]} Qa5 {[%emt 0:06:03]} 12. Ne3 {[%emt 0:09:24]} Qh5 {[%emt 0:07:20]} 13. Qd2 {[%emt 0:02:42]} Ng4 {[%emt 0:06:48]} 14. Nxg4 {[%emt 0:01:31]} Bxg4 {[%emt 0:00:31]} 15. Nd5 {[%emt 0:01:12]} Qh6 {[%emt 0:06:45]} 16. Qxh6 {[%emt 0:13:34]} Bxh6 {[%emt 0:00:12]} 17. f4 {[%emt 0:00:34]} Bg7 {[%emt 0:03:51]} 18. Bxg7 {[%emt 0:00:24]} Kxg7 {[%emt 0:00:02]} 19. e4 {[%emt 0:00:27]} Bd7 {[%emt 0:09:50]} 20. Rad1 {[%emt 0:04:35]} Rfd8 {[%emt 0:06:04]} 21. e5 {[%emt 0:04:59]} dxe5 {[%emt 0:04:48]} 22. fxe5 {[%emt 0:00:02]} Be6 {[%emt 0:01:16]} 23. Nf4 {[%emt 0:01:32]} Bg4 {[%emt 0:03:12]} 24. Rde1 {[%emt 0:06:05]} g5 {[%emt 0:03:17]} 25. Nd5 {[%emt 0:04:08]} Rd7 {[%emt 0:03:03]} 26. h4 {[%emt 0:08:03]} h6 {[%emt 0:01:00]} 27. Ne3 {[%emt 0:04:33]} Be6 {[%emt 0:02:30]} 28. hxg5 {[%emt 0:01:25]} hxg5 {[%emt 0:00:53]} 29. Nf5+ {[%emt 0:00:43]} Bxf5 {[%emt 0:02:14]} 30. Rxf5 {[%emt 0:00:46]} f6 {[%emt 0:00:12]} 31. exf6+ {[%emt 0:01:56]} exf6 {[%emt 0:00:08]} 32. Rd5 {[%emt 0:03:52]} Rcd8 {[%emt 0:03:41]} 33. Red1 {[%emt 0:00:16]} Rxd5 {[%emt 0:00:13]} 34. cxd5 {[%emt 0:00:12]} Ne7 {[%emt 0:04:05]} 35. Kf2 {[%emt 0:03:22]} f5 {[%emt 0:00:28]} 36. Ke3 {[%emt 0:03:53]} Kf6 {[%emt 0:00:28]} 37. Kd4 {[%emt 0:00:41]} Nc6+ {[%emt 0:00:16]} 38. Kc5 {[%emt 0:00:26]} Ne5 {[%emt 0:00:12]} 39. d6 {[%emt 0:00:14]} Rd7 {[%emt 0:02:16]} 40. a4 {[%emt 0:03:40]} Ke6 {[%emt 0:00:53]} 41. Bd5+ {[%emt 0:00:31]} Kf6 {[%emt 0:00:06]} 42. a5 {[%emt 0:00:43]} b6+ {[%emt 0:02:03]} 43. axb6 {[%emt 0:00:07]} axb6+ {[%emt 0:00:00]} 44. Kxb6 {[%emt 0:00:11]} Rxd6+ {[%emt 0:00:03]} 45. Kc5 {[%emt 0:00:46]} Rd8 {[%emt 0:00:14]} 46. b4 {[%emt 0:01:19]} f4 {[%emt 0:00:33]} 47. gxf4 {[%emt 0:00:06]} gxf4 {[%emt 0:00:01]} 48. b5 {[%emt 0:00:17]} Rc8+ {[%emt 0:03:29]} 49. Kd4 {[%emt 0:01:39]} Rb8 {[%emt 0:01:09]} 50. Rb1 {[%emt 0:00:46]} f3 {[%emt 0:01:26]} 51. b6 {[%emt 0:01:12]} f2 {[%emt 0:03:57]} 52. b7 {[%emt 0:02:56]} Nf7 {[%emt 0:00:48]} 53. Rf1 {[%emt 0:01:36]} Nd6 {[%emt 0:00:43]} 54. Rxf2+ {[%emt 0:00:04]} Ke7 {[%emt 0:01:48]} 55. Rh2 {[%emt 0:01:02]} Nxb7 {[%emt 0:00:40]} 56. Bxb7 {[%emt 0:00:04]} Kf6 {[%emt 0:00:25]} 57. Rf2+ {[%emt 0:00:10]} Kg5 {[%emt 0:00:21]} 58. Rf7 {[%emt 0:00:18]} Rd8+ {[%emt 0:00:19]} 59. Bd5 {[%emt 0:00:11]} Re8 {[%emt 0:00:21]} 60. Bc6 {[%emt 0:00:18]} Re6 {[%emt 0:01:00]} 61. Be4 {[%emt 0:00:22]} Re8 {[%emt 0:00:11]} 62. Rf5+ {[%emt 0:00:10]} Kg4 {[%emt 0:00:14]} 63. Ke3 {[%emt 0:00:03]} Re6 {[%emt 0:00:59]} 64. Ra5 {[%emt 0:00:15]} Rb6 {[%emt 0:00:15]} 65. Bf3+ {[%emt 0:00:13]} Kg3 {[%emt 0:00:39]} 66. Rg5+ {[%emt 0:00:10]} Kh4 {[%emt 0:00:20]} 67. Rg1 {[%emt 0:00:07]} Re6+ {[%emt 0:01:14]} 68. Kf2 {[%emt 0:00:20]} Re5 {[%emt 0:01:28]} 69. Rg4+ {[%emt 0:00:12]} Kh3 {[%emt 0:00:13]} 70. Rf4 {[%emt 0:00:32]} Ra5 {[%emt 0:01:09]} 71. Bg2+ {[%emt 0:00:06]} 1-0

[Event "94th Paris-ch  2019"]
[Site "Paris"]
[Date "2019.07.08"]
[Round "3.5"]
[White "Verstraeten, Rein"]
[Black "Shchekachev, Andrei"]
[Result "0-1"]
[ECO "A43"]
[WhiteElo "2376"]
[BlackElo "2531"]
[Annotator "RC"]
[PlyCount "106"]
[EventDate "2019.07.07"]
[EventType "swiss"]
[EventCountry "FRA"]
[SourceTitle "playchess.com"]
[Source "ChessBase"]
[SourceQuality "1"]
[TimeControl "5400+30"]

1. d4 {[%emt 0:00:00]} g6 {[%emt 0:10:59]} 2. c4 {[%emt 0:00:00]} Bg7 {[%emt 0:00:40]} 3. Nc3 {[%emt 0:00:28]} c5 {[%emt 0:02:49]} 4. d5 {[%emt 0:00:24]} d6 {[%emt 0:00:12]} 5. e4 {[%emt 0:00:17]} e6 {[%emt 0:03:02]} 6. Bd3 {[%emt 0:00:53]} Ne7 {[%emt 0:00:58]} 7. Nge2 {[%emt 0:05:25]} O-O {[%emt 0:07:11]} 8. O-O {[%emt 0:08:46]} exd5 {[%emt 0:04:23]} 9. exd5 {[%emt 0:01:25]} Nd7 {[%emt 0:00:39]} 10. Ng3 {[%emt 0:01:20]} Ne5 {[%emt 0:06:10]} 11. f4 {[%emt 0:18:22]} Nxd3 {[%emt 0:02:55]} 12. Qxd3 {[%emt 0:00:09]} Nf5 {[%emt 0:01:03]} 13. Nge4 {[%emt 0:01:37]} Nd4 {[%emt 0:05:07]} 14. b3 {[%emt 0:03:13]} b5 {[%emt 0:06:26]} 15. cxb5 {[%emt 0:02:28]} a6 {[%emt 0:02:18]} 16. b6 {[%emt 0:05:49]} Qxb6 {[%emt 0:02:16]} 17. Kh1 {[%emt 0:00:08]} a5 {[%emt 0:06:40]} 18. Qd2 {[%emt 0:03:51]} Bf5 {[%emt 0:04:45]} 19. Bb2 {[%emt 0:01:23]} a4 {[%emt 0:03:08]} 20. bxa4 {[%emt 0:13:22]} Rfb8 {[%emt 0:02:09]} 21. Rf2 {[%emt 0:07:56]} Bxe4 {[%emt 0:04:42]} 22. Nxe4 {[%emt 0:00:28]} Rxa4 {[%emt 0:00:03]} 23. Ng3 {[%emt 0:07:22]} Qa6 {[%emt 0:08:47]} 24. Bc3 {[%emt 0:05:40]} h5 {[%emt 0:03:45]} 25. Re1 {[%emt 0:01:12]} Qc4 {[%emt 0:03:39]} 26. f5 {[%emt 0:04:40]} Nxf5 {[%emt 0:01:47]} 27. Nxf5 {[%emt 0:00:53]} Qxc3 {[%emt 0:00:16]} 28. Ne7+ {[%emt 0:00:30]} Kh8 {[%emt 0:03:34]} 29. Qxc3 {[%emt 0:01:04]} Bxc3 {[%emt 0:00:02]} 30. Ref1 {[%emt 0:00:03]} Kg7 {[%emt 0:02:16]} 31. Rxf7+ {[%emt 0:01:41]} Kh6 {[%emt 0:00:01]} 32. h3 {[%emt 0:01:07]} Re8 {[%emt 0:00:58]} 33. R1f2 {[%emt 0:02:04]} Bd4 {[%emt 0:01:05]} 34. Re2 {[%emt 0:00:42]} Be5 {[%emt 0:01:03]} 35. Nc6 {[%emt 0:00:20]} c4 {[%emt 0:00:57]} 36. Nxe5 {[%emt 0:00:15]} Rxe5 {[%emt 0:00:06]} 37. Rxe5 {[%emt 0:00:05]} dxe5 {[%emt 0:00:40]} 38. d6 {[%emt 0:00:05]} Rxa2 {[%emt 0:00:14]} 39. Re7 {[%emt 0:01:08]} c3 {[%emt 0:00:34]} 40. Rc7 {[%emt 0:00:12]} Rd2 {[%emt 0:00:05]} 41. Rxc3 {[%emt 0:00:45]} Rxd6 {[%emt 0:00:03]} 42. h4 {[%emt 0:01:45]} Kg7 {[%emt 0:00:43]} 43. Kh2 {[%emt 0:01:10]} Kf6 {[%emt 0:00:14]} 44. Rf3+ {[%emt 0:00:52]} Ke6 {[%emt 0:00:06]} 45. Kg3 {[%emt 0:00:34]} Rd4 {[%emt 0:01:19]} 46. Rf8 {[%emt 0:00:33]} Kd5 {[%emt 0:00:52]} 47. Kf3 {[%emt 0:00:23]} Rxh4 {[%emt 0:00:14]} 48. Rd8+ {[%emt 0:00:03]} Ke6 {[%emt 0:00:10]} 49. Re8+ {[%emt 0:00:17]} Kf6 {[%emt 0:00:33]} 50. g3 {[%emt 0:00:25]} Ra4 {[%emt 0:00:15]} 51. Rf8+ {[%emt 0:00:09]} Kg5 {[%emt 0:00:12]} 52. Re8 {[%emt 0:00:05]} Ra3+ {[%emt 0:00:12]} 53. Kf2 {[%emt 0:00:17]} Kg4 {[%emt 0:00:29]} 0-1

[Event "94th Paris-ch  2019"]
[Site "Paris"]
[Date "2019.07.08"]
[Round "3.6"]
[White "Flom, Gabriel"]
[Black "Fitzsimons, David"]
[Result "1-0"]
[ECO "E52"]
[WhiteElo "2494"]
[BlackElo "2301"]
[Annotator "ChessBase"]
[PlyCount "103"]
[EventDate "2019.07.07"]
[EventType "swiss"]
[EventCountry "FRA"]
[SourceTitle "playchess.com"]
[Source "ChessBase"]
[SourceQuality "1"]
[TimeControl "5400+30"]

1. d4 {[%emt 0:00:00]} Nf6 {[%emt 0:00:00]} 2. c4 {[%emt 0:00:24]} e6 {[%emt 0:00:07]} 3. Nc3 {[%emt 0:00:04]} Bb4 {[%emt 0:00:08]} 4. e3 {[%emt 0:00:06]} O-O {[%emt 0:00:09]} 5. Bd3 {[%emt 0:01:21]} d5 {[%emt 0:00:16]} 6. Nf3 {[%emt 0:01:05]} b6 {[%emt 0:00:36]} 7. cxd5 {[%emt 0:00:58]} exd5 {[%emt 0:00:16]} 8. O-O {[%emt 0:00:04]} Ba6 {[%emt 0:00:46]} 9. Bxa6 {[%emt 0:04:26]} Nxa6 {[%emt 0:00:06]} 10. Qa4 {[%emt 0:00:02]} Qc8 {[%emt 0:00:20]} 11. Bd2 {[%emt 0:00:02]} Re8 {[%emt 0:04:13]} 12. Rac1 {[%emt 0:00:09]} Qb7 {[%emt 0:01:06]} 13. a3 {[%emt 0:01:25]} Bxc3 {[%emt 0:02:35]} 14. Bxc3 {[%emt 0:00:06]} Ne4 {[%emt 0:01:01]} 15. b4 {[%emt 0:06:27]} c5 {[%emt 0:04:39]} 16. bxc5 {[%emt 0:04:44]} bxc5 {[%emt 0:00:07]} 17. dxc5 {[%emt 0:08:01]} Naxc5 {[%emt 0:00:41]} 18. Qd4 {[%emt 0:00:07]} Ne6 {[%emt 0:05:03]} 19. Qe5 {[%emt 0:05:40]} Qb3 {[%emt 0:10:20]} 20. Nd4 {[%emt 0:07:49]} Nxd4 {[%emt 0:15:15]} 21. Qxd4 {[%emt 0:00:41]} Nf6 {[%emt 0:01:02]} 22. Qd1 {[%emt 0:04:10]} Qxd1 {[%emt 0:10:55]} 23. Rfxd1 {[%emt 0:00:10]} Rac8 {[%emt 0:06:48]} 24. Bxf6 {[%emt 0:02:30]} Rxc1 {[%emt 0:00:47]} 25. Rxc1 {[%emt 0:00:15]} gxf6 {[%emt 0:00:05]} 26. Kf1 {[%emt 0:06:26]} Re4 {[%emt 0:05:20]} 27. Rc3 {[%emt 0:09:21]} Ra4 {[%emt 0:00:57]} 28. Rd3 {[%emt 0:00:04]} Kg7 {[%emt 0:02:59]} 29. Ke2 {[%emt 0:00:04]} Kg6 {[%emt 0:00:41]} 30. Kd2 {[%emt 0:00:05]} f5 {[%emt 0:00:39]} 31. g3 {[%emt 0:01:45]} Kg5 {[%emt 0:02:14]} 32. f3 {[%emt 0:12:47]} Kf6 {[%emt 0:00:27]} 33. Kc2 {[%emt 0:00:12]} Ke6 {[%emt 0:00:42]} 34. Kb3 {[%emt 0:00:05]} Ra6 {[%emt 0:00:26]} 35. Rd4 {[%emt 0:01:07]} Ke5 {[%emt 0:01:09]} 36. Ra4 {[%emt 0:06:50]} Rb6+ {[%emt 0:00:06]} 37. Kc3 {[%emt 0:02:06]} a6 {[%emt 0:00:47]} 38. Rb4 {[%emt 0:00:39]} Rc6+ {[%emt 0:02:46]} 39. Kd3 {[%emt 0:00:33]} f6 {[%emt 0:03:14]} 40. Rb7 {[%emt 0:01:31]} h5 {[%emt 0:00:22]} 41. a4 {[%emt 0:01:51]} Kd6 {[%emt 0:04:37]} 42. h4 {[%emt 0:02:18]} Rc1 {[%emt 0:07:42]} 43. Rb6+ {[%emt 0:00:18]} Ke7 {[%emt 0:00:10]} 44. Rxa6 {[%emt 0:00:45]} Rg1 {[%emt 0:00:17]} 45. Ra7+ {[%emt 0:01:04]} Kf8 {[%emt 0:00:07]} 46. a5 {[%emt 0:00:18]} Rxg3 {[%emt 0:00:32]} 47. a6 {[%emt 0:00:08]} Rxf3 {[%emt 0:04:27]} 48. Rb7 {[%emt 0:00:04]} f4 {[%emt 0:00:31]} 49. a7 {[%emt 0:00:04]} Rxe3+ {[%emt 0:00:04]} 50. Kd2 {[%emt 0:00:04]} Ra3 {[%emt 0:00:05]} 51. Rb8+ {[%emt 0:00:06]} Kf7 {[%emt 0:00:11]} 52. a8=Q {[%emt 0:00:04]} 1-0

[Event "94th Paris-ch  2019"]
[Site "Paris"]
[Date "2019.07.08"]
[Round "3.9"]
[White "Le Quang, Kim"]
[Black "Bonte, Andrei-Mihai"]
[Result "0-1"]
[ECO "A29"]
[WhiteElo "2243"]
[BlackElo "2337"]
[Annotator "NA"]
[PlyCount "62"]
[EventDate "2019.07.07"]
[EventType "swiss"]
[EventCountry "FRA"]
[SourceTitle "playchess.com"]
[Source "ChessBase"]
[SourceQuality "1"]
[TimeControl "5400+30"]

1. c4 {[%emt 0:05:07]} Nf6 {[%emt 0:00:16]} 2. Nc3 {[%emt 0:02:02]} e5 {[%emt 0:02:03]} 3. g3 {[%emt 0:00:17]} d5 {[%emt 0:00:27]} 4. cxd5 {[%emt 0:00:14]} Nxd5 {[%emt 0:00:06]} 5. Bg2 {[%emt 0:00:39]} Nb6 {[%emt 0:00:05]} 6. Nf3 {[%emt 0:00:08]} Nc6 {[%emt 0:00:05]} 7. O-O {[%emt 0:00:09]} Be7 {[%emt 0:00:40]} 8. a3 {[%emt 0:01:22]} Be6 {[%emt 0:13:50]} 9. d3 {[%emt 0:01:31]} g5 {[%emt 0:05:00]} 10. b4 {[%emt 0:01:50]} g4 {[%emt 0:03:05]} 11. Nd2 {[%emt 0:00:54]} h5 {[%emt 0:00:30]} 12. Bb2 {[%emt 0:01:46]} h4 {[%emt 0:05:49]} 13. Rc1 {[%emt 0:02:29]} hxg3 {[%emt 0:01:44]} 14. hxg3 {[%emt 0:00:28]} a6 {[%emt 0:01:59]} 15. Na4 {[%emt 0:16:00]} Bd5 {[%emt 0:23:09]} 16. e4 {[%emt 0:01:22]} Nxa4 {[%emt 0:02:16]} 17. Qxa4 {[%emt 0:00:33]} Be6 {[%emt 0:00:48]} 18. Qc2 {[%emt 0:10:52]} Bg5 {[%emt 0:11:25]} 19. Rb1 {[%emt 0:01:14]} Nd4 {[%emt 0:08:48]} 20. Bxd4 {[%emt 0:01:00]} Qxd4 {[%emt 0:00:13]} 21. Nb3 {[%emt 0:01:25]} Bxb3 {[%emt 0:03:42]} 22. Rxb3 {[%emt 0:00:30]} c6 {[%emt 0:00:42]} 23. Rd1 {[%emt 0:04:25]} Bd8 {[%emt 0:00:44]} 24. b5 {[%emt 0:20:11]} axb5 {[%emt 0:01:59]} 25. Rb4 {[%emt 0:00:05]} Qd6 {[%emt 0:00:23]} 26. d4 {[%emt 0:00:28]} Rxa3 {[%emt 0:00:41]} 27. Rbb1 {[%emt 0:07:17]} Bb6 {[%emt 0:01:31]} 28. d5 {[%emt 0:02:33]} Rxg3 {[%emt 0:01:58]} 29. Kf1 {[%emt 0:03:40]} Qf6 {[%emt 0:01:09]} 30. Ra1 {[%emt 0:03:49]} Rxg2 {[%emt 0:01:09]} 31. Ra8+ {[%emt 0:00:07]} Ke7 {[%emt 0:00:40]} 0-1

[Event "94th Paris-ch  2019"]
[Site "Paris"]
[Date "2019.07.08"]
[Round "3.10"]
[White "Sanchez, Louis"]
[Black "Hingouet, Matthieu"]
[Result "1-0"]
[ECO "A46"]
[WhiteElo "2316"]
[BlackElo "2245"]
[Annotator "NA"]
[PlyCount "79"]
[EventDate "2019.07.07"]
[EventType "swiss"]
[EventCountry "FRA"]
[SourceTitle "playchess.com"]
[Source "ChessBase"]
[SourceQuality "1"]
[TimeControl "5400+30"]

1. Nf3 {[%emt 0:00:00]} Nf6 {[%emt 0:00:00]} 2. g3 {[%emt 0:00:00]} e6 {[%emt 0:00:06]} 3. Bg2 {[%emt 0:00:01]} d5 {[%emt 0:00:11]} 4. d4 {[%emt 0:00:20]} b5 {[%emt 0:00:49]} 5. O-O {[%emt 0:00:31]} Bb7 {[%emt 0:01:21]} 6. a4 {[%emt 0:00:54]} b4 {[%emt 0:01:35]} 7. c4 {[%emt 0:00:15]} dxc4 {[%emt 0:10:09]} 8. Nbd2 {[%emt 0:02:22]} c3 {[%emt 0:07:38]} 9. bxc3 {[%emt 0:00:30]} bxc3 {[%emt 0:00:25]} 10. Nc4 {[%emt 0:01:01]} Be7 {[%emt 0:10:24]} 11. Qb3 {[%emt 0:02:50]} Be4 {[%emt 0:02:27]} 12. Qxc3 {[%emt 0:01:34]} O-O {[%emt 0:01:25]} 13. Ba3 {[%emt 0:02:58]} Nbd7 {[%emt 0:06:33]} 14. Rfd1 {[%emt 0:07:53]} Nd5 {[%emt 0:03:57]} 15. Qc1 {[%emt 0:02:33]} Nb4 {[%emt 0:04:26]} 16. Ncd2 {[%emt 0:09:16]} Bd5 {[%emt 0:02:10]} 17. e4 {[%emt 0:01:45]} Bb7 {[%emt 0:01:08]} 18. a5 {[%emt 0:01:25]} Ba6 {[%emt 0:03:40]} 19. Qc3 {[%emt 0:01:46]} Rb8 {[%emt 0:04:04]} 20. Rdb1 {[%emt 0:03:13]} c5 {[%emt 0:02:50]} 21. dxc5 {[%emt 0:01:43]} Nd3 {[%emt 0:04:43]} 22. Rxb8 {[%emt 0:02:55]} Qxb8 {[%emt 0:01:48]} 23. Rb1 {[%emt 0:02:37]} Qc7 {[%emt 0:01:53]} 24. Bf1 {[%emt 0:04:49]} Bxc5 {[%emt 0:06:01]} 25. Bxc5 {[%emt 0:13:53]} Qxc5 {[%emt 0:02:06]} 26. Qd4 {[%emt 0:01:25]} N7e5 {[%emt 0:02:51]} 27. Qxc5 {[%emt 0:03:59]} Nxf3+ {[%emt 0:00:05]} 28. Nxf3 {[%emt 0:00:20]} Nxc5 {[%emt 0:00:03]} 29. Bxa6 {[%emt 0:00:32]} Nxa6 {[%emt 0:00:03]} 30. Rb7 {[%emt 0:00:20]} Ra8 {[%emt 0:04:11]} 31. Ng5 {[%emt 0:03:03]} Nc5 {[%emt 0:01:18]} 32. Rc7 {[%emt 0:00:06]} Na6 {[%emt 0:00:38]} 33. Re7 {[%emt 0:03:54]} h6 {[%emt 0:02:53]} 34. Nxf7 {[%emt 0:01:30]} Kf8 {[%emt 0:01:14]} 35. Rxe6 {[%emt 0:01:20]} Nc5 {[%emt 0:00:39]} 36. Re5 {[%emt 0:01:27]} Nxe4 {[%emt 0:02:04]} 37. Nxh6 {[%emt 0:01:07]} Nxf2 {[%emt 0:01:44]} 38. Rf5+ {[%emt 0:04:15]} Ke8 {[%emt 0:00:20]} 39. Rxf2 {[%emt 0:00:48]} gxh6 {[%emt 0:00:07]} 40. Rf6 {[%emt 0:00:08]} 1-0

[Event "94th Paris-ch  2019"]
[Site "Paris"]
[Date "2019.07.08"]
[Round "3.11"]
[White "French, Max"]
[Black "Bergez, Luc"]
[Result "0-1"]
[ECO "E73"]
[WhiteElo "2232"]
[BlackElo "2308"]
[Annotator "NA"]
[PlyCount "64"]
[EventDate "2019.07.07"]
[EventType "swiss"]
[EventCountry "FRA"]
[SourceTitle "playchess.com"]
[Source "ChessBase"]
[SourceQuality "1"]
[TimeControl "5400+30"]

1. d4 {[%emt 0:00:00]} Nf6 {[%emt 0:06:07]} 2. c4 {[%emt 0:00:39]} g6 {[%emt 0:00:19]} 3. Nc3 {[%emt 0:00:13]} Bg7 {[%emt 0:00:25]} 4. e4 {[%emt 0:00:11]} O-O {[%emt 0:00:13]} 5. Be2 {[%emt 0:00:08]} d6 {[%emt 0:00:24]} 6. Be3 {[%emt 0:00:08]} e5 {[%emt 0:00:42]} 7. d5 {[%emt 0:00:08]} Na6 {[%emt 0:03:07]} 8. g4 {[%emt 0:00:08]} Nc5 {[%emt 0:01:02]} 9. f3 {[%emt 0:00:08]} a5 {[%emt 0:00:55]} 10. h4 {[%emt 0:00:08]} h5 {[%emt 0:02:00]} 11. g5 {[%emt 0:00:06]} Ne8 {[%emt 0:00:49]} 12. Qd2 {[%emt 0:01:31]} Bd7 {[%emt 0:05:12]} 13. O-O-O {[%emt 0:05:44]} Qc8 {[%emt 0:00:52]} 14. Bf1 {[%emt 0:05:53]} Na4 {[%emt 0:16:10]} 15. Nxa4 {[%emt 0:08:25]} Bxa4 {[%emt 0:00:05]} 16. Bh3 {[%emt 0:00:14]} Qd8 {[%emt 0:00:55]} 17. b3 {[%emt 0:03:51]} Bd7 {[%emt 0:00:12]} 18. c5 {[%emt 0:01:18]} dxc5 {[%emt 0:03:28]} 19. Bxc5 {[%emt 0:00:28]} Nd6 {[%emt 0:00:19]} 20. Kb2 {[%emt 0:05:32]} a4 {[%emt 0:01:02]} 21. Qb4 {[%emt 0:11:33]} Nb5 {[%emt 0:08:06]} 22. Bf1 {[%emt 0:02:37]} Nd4 {[%emt 0:00:58]} 23. f4 {[%emt 0:15:59]} axb3 {[%emt 0:05:15]} 24. axb3 {[%emt 0:00:14]} Bg4 {[%emt 0:00:14]} 25. Rd3 {[%emt 0:07:41]} b6 {[%emt 0:03:37]} 26. Bxd4 {[%emt 0:01:25]} exd4 {[%emt 0:00:08]} 27. e5 {[%emt 0:04:44]} Qxd5 {[%emt 0:01:17]} 28. Rh2 {[%emt 0:01:38]} c5 {[%emt 0:02:11]} 29. Qe1 {[%emt 0:05:52]} c4 {[%emt 0:02:25]} 30. bxc4 {[%emt 0:01:44]} Qxc4 {[%emt 0:00:14]} 31. Ra3 {[%emt 0:00:37]} d3 {[%emt 0:02:38]} 32. Bxd3 {[%emt 0:03:21]} Qxf4 {[%emt 0:02:42]} 0-1